fUST/lending_fUST_20241031
["ID","MTS","AMOUNT","RATE_DAILY","PERIOD"]
[341077822,1730346551294,-503.31196164,0.00030617,5]
[341077823,1730346551316,-311.93203897,0.00030617,5]
[341077824,1730346551338,-500.0,0.00030617,5]
[341077825,1730346551359,-513.12257077,0.00030617,5]
[341077826,1730346551381,-500.0,0.00030617,5]
[341077827,1730346551404,-502.75548002,0.00030617,5]
[341077828,1730346551425,-354.78224157,0.00030617,5]
[341077829,1730346551448,-479.14076692,0.00030617,5]
[341077830,1730346551470,-500.0,0.00030617,5]
[341077831,1730346551491,-500.0,0.00030617,5]
[341077832,1730346551512,-500.0,0.00030617,5]
[341077833,1730346551534,-514.09267883,0.00030617,5]
[341077834,1730346551556,-500.0,0.00030617,5]
[341077835,1730346551587,-506.22950039,0.00030617,5]
[341077836,1730346551610,-5981.19,0.00030617,5]
[341077837,1730346551635,-500.0,0.00030617,5]
[341077838,1730346551658,-500.0,0.00030617,5]
[341077839,1730346551680,-500.0,0.00030617,5]
[341077840,1730346551701,-538.17819336,0.00030617,5]
[341077841,1730346551725,-500.0,0.00030617,5]
[341077842,1730346551755,-500.0,0.00030617,5]
[341077843,1730346551776,-561.72247234,0.00030617,5]
[341077844,1730346551797,-538.63603437,0.00030617,5]
[341077845,1730346551818,-500.0,0.00030617,5]
[341077846,1730346551840,-500.0,0.00030617,5]
[341077847,1730346551862,-500.0,0.00030617,5]
[341077848,1730346551884,-518.14793122,0.00030617,5]
[341077849,1730346551905,-511.30818443,0.00030617,5]
[341077850,1730346551929,-500.0,0.00030617,5]
[341077851,1730346551954,-500.0,0.00030617,5]
[341077852,1730346551977,-500.0,0.00030617,5]
[341077853,1730346551999,-500.0,0.00030617,5]
[341077854,1730346552020,-405.49496383,0.00030617,5]
[341077855,1730346552041,-524.70832119,0.00030617,5]
[341077856,1730346552064,-500.0,0.00030617,5]
[341077857,1730346552085,-200.0,0.000307,120]
[341077858,1730346552109,-5000.0,0.00030713,2]
[341077859,1730346552131,-518.06409944,0.00030715,5]
[341077860,1730346552152,-514.94746752,0.00030715,5]
[341077861,1730346552176,-687.58,0.00030715,5]
[341077862,1730346552199,-477.63024236,0.00030715,2]
[341077863,1730346552222,-500.0,0.00030715,5]
[341077864,1730346552245,-502.22797552,0.00030715,5]
[341077865,1730346552268,-500.0,0.00030715,5]
[341077866,1730346552291,-500.0,0.00030715,5]
[341077867,1730346552315,-500.0,0.00030715,5]
[341077868,1730346552337,-513.24105149,0.00030715,5]
[341077869,1730346552360,-5000.0,0.00030716,2]
[341077870,1730346552383,-311.00345396,0.00030716,2]
[341077871,1730346552404,-500.0,0.00030718,5]
[341077872,1730346552425,-507.77413033,0.00030718,5]
[341077873,1730346552446,-565.38598758,0.00030718,5]
[341077874,1730346552467,-500.0,0.00030718,5]
[341077875,1730346552489,-500.0,0.00030718,5]
[341077876,1730346552509,-500.0,0.00030718,5]
[341077877,1730346552530,-503.19694912,0.00030718,5]
[341077878,1730346552550,-500.0,0.00030889,5]
[341077879,1730346552570,-631.68642529,0.00030889,5]
[341077880,1730346552592,-500.0,0.00030889,5]
[341077881,1730346552613,-521.54899483,0.00030889,5]
[341077882,1730346552635,-500.0,0.00030889,5]
[341077883,1730346552657,-507.75234964,0.00030889,5]
[341077884,1730346552678,-512.53095291,0.00030889,5]
[341077885,1730346552699,-520.2583826,0.00030889,5]
[341077886,1730346552721,-4342.86,0.00030889,5]
[341077887,1730346552742,-1464.41,0.00030889,5]
[341077888,1730346552766,-516.55,0.0003089,5]
[341077889,1730346552787,-517.01684011,0.0003089,5]
[341077890,1730346552808,-500.0,0.0003089,5]
[341077891,1730346552831,-1063.28,0.0003089,5]
[341077892,1730346552855,-500.0,0.0003089,5]
[341077893,1730346552878,-500.0,0.0003089,5]
[341077894,1730346552901,-507.2585024,0.0003089,5]
[341077895,1730346552927,-9256.19,0.0003089,3]
[341077896,1730346552948,-500.0,0.0003089,5]
[341077897,1730346552975,-990.13,0.0003089,5]
[341077898,1730346553000,-502.84804866,0.0003089,5]
[341077899,1730346553025,-500.0,0.0003089,5]
[341077900,1730346553050,-503.31,0.0003089,5]
[341077901,1730346553072,-254.54424478,0.0003089,5]
[341077902,1730346553096,-500.0,0.0003089,5]
[341077903,1730346553206,-500.0,0.0003089,5]
[341077904,1730346553228,-500.0,0.0003089,5]
[341077905,1730346553249,-506.75208198,0.0003089,5]
[341077906,1730346553270,-500.0,0.0003089,5]
[341077907,1730346553291,-500.0,0.0003089,5]
[341077908,1730346553314,-500.0,0.0003089,5]
[341077909,1730346553344,-783.72,0.0003089,5]
[341077910,1730346553365,-516.54186898,0.0003089,5]
[341077911,1730346553385,-505.36696481,0.0003089,5]
[341077912,1730346553407,-511.74823867,0.0003089,5]
[341077913,1730346553428,-500.0,0.0003089,5]
[341077914,1730346553456,-597.68,0.0003089,5]
[341077915,1730346553482,-2449.58,0.0003089,5]
[341077916,1730346553507,-500.0,0.0003089,5]
[341077917,1730346553532,-500.0,0.0003089,5]
[341077918,1730346553555,-500.0,0.0003089,5]
[341077919,1730346553577,-525.22,0.0003089,5]
[341077920,1730346553599,-500.0,0.00030891,5]
[341077921,1730346553625,-500.0,0.00030891,5]
[341077922,1730346553648,-500.0,0.00030891,5]
[341077923,1730346553673,-500.0,0.00030891,5]
[341077924,1730346553697,-500.0,0.00030891,5]
[341077925,1730346553721,-500.0,0.00030891,5]
[341077926,1730346553743,-429.57633076,0.00030891,5]
[341077927,1730346553767,-542.61304274,0.00030891,5]
[341077928,1730346553789,-507.58228558,0.00030891,5]
[341077929,1730346553813,-509.02509094,0.00030891,5]
[341077930,1730346553838,-500.0,0.00030891,5]
[341077931,1730346553861,-500.0,0.00030891,5]
[341077932,1730346553885,-500.0,0.00030891,5]
[341077933,1730346553907,-500.0,0.00030891,5]
[341077934,1730346553933,-500.0,0.00030891,5]
[341077935,1730346553960,-500.0,0.00030891,5]
[341077936,1730346553986,-500.0,0.00030891,5]
[341077937,1730346554011,-367.98818087,0.00030891,5]
[341077938,1730346554037,-510.27877761,0.00030891,5]
[341077939,1730346554063,-509.96707723,0.00030891,5]
[341077940,1730346554088,-508.17811043,0.00030891,5]
[341077941,1730346554111,-500.0,0.00030891,5]
[341077942,1730346554133,-347.4592465,0.00030891,5]
[341077943,1730346554156,-500.0,0.00030891,5]
[341077944,1730346554180,-500.0,0.00030891,5]
[341077945,1730346554204,-348.78890143,0.00030891,5]
[341077946,1730346554228,-500.0,0.00030891,5]
[341077947,1730346554253,-5981.19,0.00030891,5]
[341077948,1730346554276,-500.0,0.00030891,5]
[341077949,1730346554301,-500.0,0.00030891,5]
[341077950,1730346554324,-514.71282838,0.00030891,5]
[341077951,1730346554346,-510.74998299,0.00030891,5]
[341077952,1730346554369,-500.0,0.00030891,5]
[341077953,1730346554390,-500.0,0.00030891,5]
[341077954,1730346554412,-500.0,0.00030891,5]
[341077955,1730346554434,-500.0,0.00030891,5]
[341077956,1730346554458,-500.0,0.00030891,5]
[341077957,1730346554481,-500.0,0.00030891,5]
[341077958,1730346554504,-232.26199339,0.00030891,5]
[341077959,1730346554531,-500.0,0.00030891,5]
[341077960,1730346554557,-509.67540696,0.00030891,5]
[341077961,1730346554581,-500.0,0.00030973,5]
[341077962,1730346554604,-160.11903509,0.00030973,5]
[341077963,1730346554624,-150.390694,0.00030973,2]
[341077964,1730346554648,-502.4575953,0.00030973,5]
[341077965,1730346554671,-500.0,0.00030973,5]
[341077966,1730346554694,-500.0,0.00030973,2]
[341077967,1730346554719,-512.89498654,0.00030973,2]
[341077968,1730346554745,-500.0,0.00030973,5]
[341077969,1730346554767,-500.0,0.00030973,5]
[341077970,1730346554793,-500.0,0.00030973,5]
[341077971,1730346554816,-433.48353229,0.00030973,5]
[341077972,1730346554839,-687.58,0.00030989,5]
[341077973,1730346554863,-500.0,0.00030989,5]
[341077974,1730346554887,-596.70021498,0.00030989,5]
[341077975,1730346554909,-500.0,0.00030989,5]
[341077976,1730346554932,-102.60165876,0.00030989,5]
[341077977,1730346561201,-501.29,0.00030615,5]
[341077978,1730346561224,-500.0,0.00030617,5]
[341077979,1730346561248,-1730.61,0.00030617,5]
[341077980,1730346561273,-501.29,0.00030889,5]
[341077981,1730346561299,-500.0,0.00030891,5]
[341077982,1730346561323,-1730.61,0.00030891,5]
[341077983,1730346561349,-397.39834124,0.00030989,5]
[341077984,1730346561372,-500.0,0.00030991,5]
[341077985,1730346561397,-500.0,0.00030991,5]
[341077986,1730346561420,-500.0,0.00030991,5]
[341077987,1730346561444,-450.82704423,0.00030991,5]
[341077988,1730346561467,-500.0,0.00030991,5]
[341077989,1730346561489,-507.02971178,0.00030991,5]
[341077990,1730346561511,-500.0,0.00030991,5]
[341077991,1730346561533,-500.0,0.00030991,5]
[341077992,1730346561555,-506.79307979,0.00030991,5]
[341077993,1730346561579,-509.89289849,0.00030991,5]
[341077994,1730346561602,-500.0,0.00030991,5]
[341077995,1730346561624,-500.0,0.00030991,5]
[341077996,1730346561648,-534.87718172,0.00030991,5]
[341077997,1730346561670,-500.0,0.00030991,5]
[341077998,1730346561694,-500.0,0.00030991,5]
[341077999,1730346561719,-500.0,0.00030991,5]
[341078000,1730346561745,-298.64788567,0.00030991,5]
[341078001,1730346561769,-519.46477832,0.00030991,5]
[341078002,1730346561796,-500.0,0.00030991,5]
[341078003,1730346561818,-507.56058286,0.00030991,5]
[341078004,1730346561843,-500.0,0.00030991,5]
[341078005,1730346561865,-500.0,0.00030991,5]
[341078006,1730346561887,-500.0,0.00030991,5]
[341078007,1730346561913,-508.41049202,0.00030991,5]
[341078008,1730346561935,-500.0,0.00030991,5]
[341078009,1730346561962,-488.15201306,0.00030991,5]
[341078010,1730346561984,-501.45843499,0.00030991,5]
[341078011,1730346562005,-504.77521428,0.00030991,5]
[341078012,1730346562027,-500.0,0.00030991,5]
[341078013,1730346562051,-595.99,0.00030991,5]
[341078014,1730346562073,-500.0,0.00030991,5]
[341078015,1730346562093,-500.0,0.00030991,5]
[341078016,1730346562115,-508.08642587,0.00030991,5]
[341078017,1730346562136,-334.4507,0.00030991,5]
[341078018,1730346562157,-500.0,0.00030991,5]
[341078019,1730346562178,-500.0,0.00030991,5]
[341078020,1730346562200,-500.0,0.00030991,5]
[341078021,1730346562221,-500.0,0.00030991,5]
[341078022,1730346562243,-500.0,0.00030991,5]
[341078023,1730346562264,-500.0,0.00030991,5]
[341078024,1730346562286,-508.73846289,0.00030991,5]
[341078025,1730346562308,-500.0,0.00030991,5]
[341078026,1730346562329,-500.0,0.00030991,5]
[341078027,1730346562352,-512.22984686,0.00030991,5]
[341078028,1730346562374,-506.55756938,0.00030991,5]
[341078029,1730346562395,-505.03391724,0.00030991,5]
[341078030,1730346562416,-506.71603917,0.00030991,5]
[341078031,1730346562438,-500.0,0.00030991,5]
[341078032,1730346562460,-500.0,0.00030991,2]
[341078033,1730346562480,-500.03430483,0.00030991,5]
[341078034,1730346562502,-506.84469469,0.00030991,5]
[341078035,1730346562525,-500.0,0.00030991,5]
[341078036,1730346562548,-500.0,0.00030991,5]
[341078037,1730346562570,-500.0,0.00030991,5]
[341078038,1730346562590,-500.0,0.00030991,5]
[341078039,1730346562612,-200.0,0.00030991,5]
[341078040,1730346562633,-500.0,0.00030991,5]
[341078041,1730346562656,-151.0,0.00030991,7]
[341078042,1730346562677,-182.00769877,0.00030992,5]
[341078043,1730346562699,-516.23371933,0.00030992,5]
[341078044,1730346562720,-500.0,0.00030992,5]
[341078045,1730346562742,-500.0,0.00030992,5]
[341078046,1730346562762,-166.666666,0.00031047,2]
[341078047,1730346562787,-500.0,0.00031163,5]
[341078048,1730346562808,-500.0,0.00031163,5]
[341078049,1730346562829,-500.0,0.00031163,5]
[341078050,1730346562854,-4342.86,0.00031163,5]
[341078051,1730346562876,-1464.41,0.00031163,5]
[341078052,1730346562899,-501.29,0.00031163,5]
[341078053,1730346562924,-500.0,0.00031164,5]
[341078054,1730346562948,-1063.28,0.00031164,5]
[341078055,1730346562977,-500.0,0.00031164,5]
[341078056,1730346563000,-9256.19,0.00031164,3]
[341078057,1730346563022,-500.0,0.00031164,5]
[341078058,1730346563046,-990.13,0.00031164,5]
[341078059,1730346563067,-500.0,0.00031164,5]
[341078060,1730346563090,-503.31,0.00031164,5]
[341078061,1730346563113,-500.0,0.00031164,5]
[341078062,1730346563136,-500.0,0.00031164,5]
[341078063,1730346563157,-202.5068999,0.00031164,5]
[341078064,1730346563180,-500.0,0.00031164,5]
[341078065,1730346563205,-783.72,0.00031164,5]
[341078066,1730346563228,-597.68,0.00031164,5]
[341078067,1730346563251,-2449.58,0.00031164,5]
[341078068,1730346563274,-535.98770045,0.00031164,5]
[341078069,1730346563297,-500.0,0.00031164,5]
[341078070,1730346563321,-500.0,0.00031164,5]
[341078071,1730346563448,-525.22,0.00031164,5]
[341078072,1730346563473,-500.0,0.00031165,5]
[341078073,1730346563496,-500.0,0.00031165,5]
[341078074,1730346563521,-500.0,0.00031165,5]
[341078075,1730346563546,-500.0,0.00031165,5]
[341078076,1730346563572,-500.0,0.00031165,5]
[341078077,1730346563595,-500.0,0.00031165,5]
[341078078,1730346563618,-500.0,0.00031165,5]
[341078079,1730346563647,-500.0,0.00031165,5]
[341078080,1730346563670,-344.71203813,0.00031165,5]
[341078081,1730346563693,-500.0,0.00031165,5]
[341078082,1730346563718,-500.0,0.00031165,5]
[341078083,1730346563743,-5981.19,0.00031165,5]
[341078084,1730346563767,-500.0,0.00031165,5]
[341078085,1730346563793,-500.0,0.00031165,5]
[341078086,1730346563816,-500.0,0.00031165,5]
[341078087,1730346563839,-500.0,0.00031165,5]
[341078088,1730346563868,-500.0,0.00031165,5]
[341078089,1730346563891,-500.0,0.00031165,5]
[341078090,1730346563913,-500.0,0.00031165,5]
[341078091,1730346563936,-1730.61,0.00031165,5]
[341078092,1730346563962,-687.58,0.00031263,5]
[341078093,1730346563985,-507.25692741,0.00031265,5]
[341078094,1730346564008,-500.0,0.00031265,5]
[341078095,1730346564034,-506.54158682,0.00031265,5]
[341078096,1730346564059,-519.4970247,0.00031265,5]
[341078097,1730346564083,-508.8077306,0.00031265,5]
[341078098,1730346564105,-511.7063501,0.00031265,5]
[341078099,1730346564128,-514.85047349,0.00031265,5]
[341078100,1730346564152,-509.39548992,0.00031265,5]
[341078101,1730346564176,-527.53306218,0.00031265,5]
[341078102,1730346564199,-529.81514878,0.00031265,5]
[341078103,1730346564221,-641.15696644,0.00031265,5]
[341078104,1730346564243,-503.73895507,0.00031265,5]
[341078105,1730346564266,-507.14589101,0.00031265,5]
[341078106,1730346564290,-511.94219887,0.00031265,5]
[341078107,1730346564312,-511.05722662,0.00031265,5]
[341078108,1730346564337,-500.0,0.00031265,5]
[341078109,1730346564363,-500.0,0.00031265,5]
[341078110,1730346564387,-595.99,0.00031265,5]
[341078111,1730346564410,-500.0,0.00031265,5]
[341078112,1730346564435,-511.93893963,0.00031265,5]
[341078113,1730346564457,-512.91477572,0.00031265,5]
[341078114,1730346564479,-510.28760183,0.00031265,5]
[341078115,1730346564504,-508.03501189,0.00031265,5]
[341078116,1730346564527,-507.22323551,0.00031265,5]
[341078117,1730346564552,-500.0,0.00031265,5]
[341078118,1730346564577,-500.0,0.00031265,5]
[341078119,1730346564601,-510.27516283,0.00031265,5]
[341078120,1730346564623,-500.0,0.00031265,5]
[341078121,1730346564646,-500.0,0.00031265,5]
[341078122,1730346564668,-500.0,0.00031265,2]
[341078123,1730346564690,-513.82793758,0.00031265,5]
[341078124,1730346564716,-500.0,0.00031265,5]
[341078125,1730346564739,-500.0,0.00031265,5]
[341078126,1730346564763,-299.2,0.00031265,5]
[341078127,1730346564784,-202.33236227,0.00031265,5]
[341078128,1730346564808,-500.0,0.00031266,5]
[341078129,1730346564832,-500.0,0.00031437,5]
[341078130,1730346564860,-500.0,0.00031437,5]
[341078131,1730346564883,-500.0,0.00031437,5]
[341078132,1730346564906,-4342.86,0.00031437,5]
[341078133,1730346564930,-1464.41,0.00031437,5]
[341078134,1730346564958,-501.29,0.00031437,5]
[341078135,1730346564981,-500.0,0.00031438,5]
[341078136,1730346565005,-1063.28,0.00031438,5]
[341078137,1730346565028,-500.0,0.00031438,5]
[341078138,1730346565052,-9256.19,0.00031438,3]
[341078139,1730346565075,-500.0,0.00031438,5]
[341078140,1730346565097,-990.13,0.00031438,5]
[341078141,1730346565119,-500.0,0.00031438,5]
[341078142,1730346565140,-503.31,0.00031438,5]
[341078143,1730346565162,-500.0,0.00031438,5]
[341078144,1730346565183,-224.71355691,0.00031438,5]
[341078145,1730346565205,-500.0,0.00031438,5]
[341078146,1730346565228,-783.72,0.00031438,5]
[341078147,1730346565251,-597.68,0.00031438,5]
[341078148,1730346565274,-2449.58,0.00031438,5]
[341078149,1730346565296,-500.0,0.00031438,5]
[341078150,1730346565318,-500.0,0.00031438,5]
[341078151,1730346565340,-525.22,0.00031438,5]
[341078152,1730346565363,-500.0,0.00031439,5]
[341078153,1730346565384,-500.0,0.00031439,5]
[341078154,1730346565407,-500.0,0.00031439,5]
[341078155,1730346565429,-500.0,0.00031439,5]
[341078156,1730346565451,-500.0,0.00031439,5]
[341078157,1730346565474,-500.0,0.00031439,5]
[341078158,1730346565500,-500.0,0.00031439,5]
[341078159,1730346565526,-500.0,0.00031439,5]
[341078160,1730346565550,-500.0,0.00031439,5]
[341078161,1730346565573,-500.0,0.00031439,5]
[341078162,1730346565597,-5981.19,0.00031439,5]
[341078163,1730346565621,-500.0,0.00031439,5]
[341078164,1730346565647,-500.0,0.00031439,5]
[341078165,1730346565671,-500.0,0.00031439,5]
[341078166,1730346565695,-500.0,0.00031439,5]
[341078167,1730346565720,-500.0,0.00031439,5]
[341078168,1730346565744,-260.651954,0.00031439,5]
[341078169,1730346565770,-500.0,0.00031439,5]
[341078170,1730346565793,-1730.61,0.00031439,5]
[341078171,1730346565816,-420.0,0.00031491,2]
[341078172,1730346565839,-687.58,0.00031537,5]
[341078173,1730346565946,-500.0,0.00031539,5]
[341078174,1730346565971,-315.64666666,0.00031539,5]
[341078175,1730346565994,-500.0,0.00031539,5]
[341078176,1730346566018,-595.99,0.00031539,5]
[341078177,1730346566041,-500.0,0.00031539,5]
[341078178,1730346566063,-500.0,0.00031539,5]
[341078179,1730346566084,-500.0,0.00031539,5]
[341078180,1730346566106,-500.0,0.00031539,5]
[341078181,1730346566127,-500.0,0.00031539,2]
[341078182,1730346566149,-500.0,0.00031539,5]
[341078183,1730346566171,-500.0,0.00031539,5]
[341078184,1730346566193,-500.0,0.0003154,5]
[341078185,1730346566216,-171.85787,0.00031546,2]
[341078186,1730346566239,-500.0,0.00031711,5]
[341078187,1730346566260,-500.0,0.00031711,5]
[341078188,1730346566282,-500.0,0.00031711,5]
[341078189,1730346566305,-4342.86,0.00031711,5]
[341078190,1730346566327,-1464.41,0.00031711,5]
[341078191,1730346566350,-501.29,0.00031711,5]
[341078192,1730346566373,-500.0,0.00031712,5]
[341078193,1730346566397,-1063.28,0.00031712,5]
[341078194,1730346566418,-500.0,0.00031712,5]
[341078195,1730346566443,-9256.19,0.00031712,3]
[341078196,1730346566467,-500.0,0.00031712,5]
[341078197,1730346566489,-990.13,0.00031712,5]
[341078198,1730346566512,-500.0,0.00031712,5]
[341078199,1730346566537,-503.31,0.00031712,5]
[341078200,1730346566561,-500.0,0.00031712,5]
[341078201,1730346566585,-500.0,0.00031712,5]
[341078202,1730346566614,-783.72,0.00031712,5]
[341078203,1730346566639,-597.68,0.00031712,5]
[341078204,1730346566664,-2449.58,0.00031712,5]
[341078205,1730346566687,-500.0,0.00031712,5]
[341078206,1730346566708,-500.0,0.00031712,5]
[341078207,1730346566730,-525.22,0.00031712,5]
[341078208,1730346566752,-500.0,0.00031713,5]
[341078209,1730346566775,-160.53468892,0.00031713,5]
[341078210,1730346566799,-500.0,0.00031713,5]
[341078211,1730346566825,-500.0,0.00031713,5]
[341078212,1730346566848,-500.0,0.00031713,5]
[341078213,1730346566870,-500.0,0.00031713,5]
[341078214,1730346566892,-500.0,0.00031713,5]
[341078215,1730346566914,-500.0,0.00031713,5]
[341078216,1730346566936,-500.0,0.00031713,5]
[341078217,1730346566958,-500.0,0.00031713,5]
[341078218,1730346566984,-5981.19,0.00031713,5]
[341078219,1730346567007,-500.0,0.00031713,5]
[341078220,1730346567029,-500.0,0.00031713,5]
[341078221,1730346567051,-500.0,0.00031713,5]
[341078222,1730346567073,-500.0,0.00031713,5]
[341078223,1730346567095,-215.6860649,0.00031713,5]
[341078224,1730346567116,-500.0,0.00031713,5]
[341078225,1730346567138,-1730.61,0.00031713,5]
[341078226,1730346567160,-687.58,0.00031811,5]
[341078227,1730346567180,-500.0,0.00031813,5]
[341078228,1730346567201,-500.0,0.00031813,5]
[341078229,1730346567221,-595.99,0.00031813,5]
[341078230,1730346567243,-496.98887249,0.00031813,5]
[341078231,1730346567265,-500.0,0.00031813,5]
[341078232,1730346567286,-500.0,0.00031813,5]
[341078233,1730346567307,-500.0,0.00031813,5]
[341078234,1730346567329,-500.0,0.00031813,2]
[341078235,1730346567349,-500.0,0.00031813,5]
[341078236,1730346567371,-301.39348661,0.00031813,5]
[341078237,1730346567391,-500.0,0.00031814,5]
[341078238,1730346567413,-500.0,0.00031834,2]
[341078239,1730346567434,-500.0,0.00031873,5]
[341078240,1730346567455,-500.0,0.00031873,5]
[341078241,1730346567477,-500.0,0.00031873,5]
[341078242,1730346567500,-500.0,0.00031985,5]
[341078243,1730346567521,-500.0,0.00031985,5]
[341078244,1730346567542,-506.589478,0.00031985,5]
[341078245,1730346567565,-4342.86,0.00031985,5]
[341078246,1730346567587,-228.36683418,0.00031985,5]
[341078247,1730346572211,-841.76,0.00030615,5]
[341078248,1730346572233,-500.0,0.00030615,5]
[341078249,1730346572257,-841.76,0.00030889,5]
[341078250,1730346572281,-500.0,0.00030889,5]
[341078251,1730346572315,-1914.19116195,0.00030891,2]
[341078252,1730346589972,1010.696454,0.00034436,120]
[341078253,1730346628749,3933.2413723,0.00029173,2]
[341078266,1730346632594,-162.2310099,0.00030122,2]
[341078279,1730346638954,-2837.7689901,0.00030122,2]
[341078280,1730346638965,-500.0,0.00030615,5]
[341078281,1730346638975,-500.0,0.00030615,5]
[341078282,1730346638986,-400.0,0.00030615,2]
[341078283,1730346638997,-1398.86208915,0.00030615,3]
[341078299,1730346643542,-2236.22549348,0.00030615,3]
[341078300,1730346643574,-1164.47,0.00030615,3]
[341078302,1730346643826,-640.9348181,0.00030615,3]
[341078303,1730346643838,-2403.53759927,0.00030615,3]
[341078304,1730346643847,-500.0,0.00030615,5]
[341078306,1730346643857,-838.47,0.00030615,5]
[341078308,1730346643866,-500.0,0.00030615,5]
[341078310,1730346643875,-500.0,0.00030615,5]
[341078311,1730346643885,-500.0,0.00030615,5]
[341078312,1730346643895,-500.0,0.00030616,5]
[341078313,1730346643904,-578.78,0.00030616,5]
[341078314,1730346643914,-500.0,0.00030616,2]
[341078315,1730346643924,-2130.69395776,0.00030616,5]
[341078316,1730346644080,-37.52905126,0.00030616,5]
[341078331,1730346681394,574.0,0.00024,60]
[341078333,1730346732147,205.3375369,0.00029376,2]
[341078334,1730346741495,97.80698838,0.00013973,2]
[341078335,1730346741516,77.64914862,0.00013973,2]
[341078346,1730347236144,171.645992,0.00013973,2]
[341078348,1730347553136,-807.89887179,0.00025,3]
[341078349,1730347631175,-4384.78962279,0.00025,3]
[341078350,1730347632098,-353.99897242,0.00025,3]
[341078351,1730347632120,-84.23690008,0.0002688,2]
[341078352,1730347632149,-415.76309992,0.0002688,2]
[341078353,1730347632172,-172.425105,0.00027888,2]
[341078354,1730347632194,-2129.72174169,0.00028202,2]
[341078355,1730347632222,-173.88070681,0.00028202,2]
[341078356,1730347632245,-162.7193127,0.00028216,2]
[341078357,1730347632265,-104.52455965,0.00028226,2]
[341078359,1730347750097,-76.22575635,0.00028226,2]
[341078360,1730347750119,-3000.0,0.00028254,2]
[341078361,1730347750142,-181.49280312,0.00028453,2]
[341078362,1730347750165,-170.741669,0.00028553,2]
[341078363,1730347750185,-200.0,0.000291,120]
[341078364,1730347750206,-172.425105,0.00029156,2]
[341078365,1730347750226,-500.0,0.00029194,2]
[341078366,1730347750248,-170.741669,0.00029297,2]
[341078367,1730347750270,-180.750316,0.00029596,2]
[341078368,1730347750291,-300.0,0.00029599,2]
[341078369,1730347750313,-300.0,0.00029599,2]
[341078370,1730347750335,-283.3692159,0.000296,2]
[341078371,1730347750357,-283.36921588,0.000296,2]
[341078372,1730347750377,-283.36921588,0.000296,2]
[341078373,1730347750400,-405.84823468,0.00029955,2]
[341078374,1730347750421,-151.0,0.0003,120]
[341078375,1730347750445,-170.741669,0.0003004,2]
[341078376,1730347750468,-172.425105,0.00030423,2]
[341078377,1730347750488,-174.26513241,0.00030513,2]
[341078378,1730347750510,-2063.76464432,0.00030513,2]
[341078379,1730347750532,-405.5,0.00030603,3]
[341078380,1730347750555,-227.20236422,0.00030612,2]
[341078381,1730347750579,-398.24586596,0.00030612,2]
[341078382,1730347750602,-278.90943112,0.00030612,2]
[341078383,1730347750625,-500.0,0.00030612,5]
[341078384,1730347750649,-500.0,0.00030612,5]
[341078385,1730347750671,-642.23078099,0.00030612,5]
[341078386,1730347750693,-522.18711623,0.00030612,5]
[341078387,1730347750716,-1404.05,0.00030612,5]
[341078388,1730347750737,-500.0,0.00030612,5]
[341078389,1730347750763,-3914.01,0.00030612,5]
[341078390,1730347750787,-500.0,0.00030612,5]
[341078391,1730347750809,-500.0,0.00030612,5]